[Event "Early-Titled-Tuesday-Blitz-July-09-2024"]
[Site "Chess.com"]
[Date "2024.07.09"]
[Round "9"]
[White "Schack-Hugo"]
[Black "Chesstiger64"]
[Result "1-0"]
[WhiteElo "2553"]
[BlackElo "2387"]
[TimeControl "180+1"]
[EndTime "9:46:00 PDT"]
[Termination "Schack-Hugo won on time"]

1. Nf3 {[%clk 0:03:00.9]} 1... c5 {[%clk 0:02:58.2]} 2. b3 {[%clk 0:03:00.8]}
2... Nc6 {[%clk 0:02:56.8]} 3. e3 {[%clk 0:03:00.9]} 3... d5 {[%clk 0:02:54.6]}
4. Bb5 {[%clk 0:03:00.7]} 4... Bd7 {[%clk 0:02:53.4]} 5. Bb2 {[%clk 0:03:00]}
5... e6 {[%clk 0:02:53.1]} 6. O-O {[%clk 0:03:00.1]} 6... Nf6 {[%clk 0:02:53.3]}
7. c4 {[%clk 0:02:59.8]} 7... Be7 {[%clk 0:02:51.7]} 8. d4 {[%clk 0:02:59.9]}
8... a6 {[%clk 0:02:51.2]} 9. Bxc6 {[%clk 0:02:59.4]} 9... Bxc6 {[%clk
0:02:50.7]} 10. Ne5 {[%clk 0:02:59.7]} 10... Rc8 {[%clk 0:02:47.4]} 11. Nc3
{[%clk 0:02:59.4]} 11... cxd4 {[%clk 0:02:47]} 12. exd4 {[%clk 0:03:00.3]} 12...
O-O {[%clk 0:02:45.5]} 13. Qe2 {[%clk 0:02:58.5]} 13... dxc4 {[%clk 0:02:45.5]}
14. bxc4 {[%clk 0:02:58.7]} 14... b5 {[%clk 0:02:30.7]} 15. cxb5 {[%clk
0:02:47.7]} 15... axb5 {[%clk 0:02:30.8]} 16. Nxc6 {[%clk 0:02:42.9]} 16... Rxc6
{[%clk 0:02:29.6]} 17. Nxb5 {[%clk 0:02:41.9]} 17... Nd5 {[%clk 0:02:25.9]} 18.
Rfc1 {[%clk 0:02:37.9]} 18... Ra6 {[%clk 0:02:04.3]} 19. a4 {[%clk 0:02:31.6]}
19... Qa8 {[%clk 0:01:57.9]} 20. Qd1 {[%clk 0:02:19.3]} 20... Nf4 {[%clk
0:01:47.1]} 21. f3 {[%clk 0:02:12.1]} 21... Nd5 {[%clk 0:01:45.3]} 22. Qb3
{[%clk 0:02:02.5]} 22... Rb8 {[%clk 0:01:26.7]} 23. Ra2 {[%clk 0:01:50.2]} 23...
Qb7 {[%clk 0:01:22.2]} 24. Ba3 {[%clk 0:01:43.4]} 24... Bg5 {[%clk 0:01:13.9]}
25. Rb1 {[%clk 0:01:38.3]} 25... h5 {[%clk 0:01:06.7]} 26. Bc5 {[%clk 0:01:26]}
26... h4 {[%clk 0:01:01.8]} 27. Qc4 {[%clk 0:01:22]} 27... h3 {[%clk 0:00:59]}
28. Nc3 {[%clk 0:01:18.6]} 28... Be3+ {[%clk 0:00:45.8]} 29. Kf1 {[%clk
0:01:11.4]} 29... hxg2+ {[%clk 0:00:46.1]} 30. Rxg2 {[%clk 0:00:54]} 30... Qxb1+
{[%clk 0:00:38.4]} 31. Nxb1 {[%clk 0:00:48.9]} 31... Rxb1+ {[%clk 0:00:39.3]}
32. Ke2 {[%clk 0:00:46.6]} 32... Rb2+ {[%clk 0:00:19.5]} 33. Kd3 {[%clk
0:00:37.6]} 33... Nf4+ {[%clk 0:00:18]} 34. Kc3 {[%clk 0:00:34.9]} 34... Rxg2
{[%clk 0:00:14.8]} 35. Qxa6 {[%clk 0:00:34.4]} 35... Nd5+ {[%clk 0:00:15.2]} 36.
Kb3 {[%clk 0:00:31.1]} 36... Rxh2 {[%clk 0:00:14.6]} 37. a5 {[%clk 0:00:28.2]}
37... Rf2 {[%clk 0:00:14.4]} 38. Qc8+ {[%clk 0:00:25.9]} 38... Kh7 {[%clk
0:00:14.6]} 39. a6 {[%clk 0:00:26.3]} 39... Rxf3 {[%clk 0:00:15]} 40. Kc2 {[%clk
0:00:20.7]} 40... Rf2+ {[%clk 0:00:10.1]} 41. Kb3 {[%clk 0:00:11.5]} 41... Rf3
{[%clk 0:00:04.5]} 42. Kc4 {[%clk 0:00:10.6]} 42... Rf1 {[%clk 0:00:02.6]} 43.
a7 {[%clk 0:00:10.1]} 1-0

[Event "Early-Titled-Tuesday-Blitz-July-09-2024"]
[Site "Chess.com"]
[Date "2024.07.09"]
[Round "9"]
[White "praveenb2002"]
[Black "artin10862"]
[Result "1-0"]
[WhiteElo "2852"]
[BlackElo "2937"]
[TimeControl "180+1"]
[EndTime "9:46:01 PDT"]
[Termination "praveenb2002 won by resignation"]

1. e4 {[%clk 0:03:00.9]} 1... e5 {[%clk 0:02:57.9]} 2. Nf3 {[%clk 0:02:58.4]}
2... Nc6 {[%clk 0:02:58]} 3. Bc4 {[%clk 0:02:58.2]} 3... Nf6 {[%clk 0:02:56.6]}
4. d3 {[%clk 0:02:56.4]} 4... a6 {[%clk 0:02:56.5]} 5. Ng5 {[%clk 0:02:34.1]}
5... d5 {[%clk 0:02:56.3]} 6. exd5 {[%clk 0:02:34.1]} 6... Na5 {[%clk
0:02:44.2]} 7. Qe2 {[%clk 0:02:29.7]} 7... Bd6 {[%clk 0:01:57.6]} 8. Bd2 {[%clk
0:02:28.8]} 8... Nxc4 {[%clk 0:01:53.7]} 9. dxc4 {[%clk 0:02:29.6]} 9... O-O
{[%clk 0:01:52]} 10. Nc3 {[%clk 0:02:25.4]} 10... e4 {[%clk 0:01:42]} 11. O-O-O
{[%clk 0:02:17.4]} 11... Re8 {[%clk 0:01:39.1]} 12. Rde1 {[%clk 0:02:15.6]}
12... Bg4 {[%clk 0:01:28.6]} 13. Qe3 {[%clk 0:02:09.4]} 13... Bf5 {[%clk
0:01:10.4]} 14. f3 {[%clk 0:02:09.4]} 14... exf3 {[%clk 0:00:59.2]} 15. Qxf3
{[%clk 0:02:10.3]} 15... Bg6 {[%clk 0:00:57.5]} 16. Nge4 {[%clk 0:01:55.4]}
16... Nxe4 {[%clk 0:00:54.1]} 17. Nxe4 {[%clk 0:01:56.3]} 17... b5 {[%clk
0:00:51.8]} 18. c5 {[%clk 0:01:31.4]} 18... Bxe4 {[%clk 0:00:38.4]} 19. Rxe4
{[%clk 0:01:32.3]} 19... Rxe4 {[%clk 0:00:39.1]} 20. Qxe4 {[%clk 0:01:25.4]}
20... Bxc5 {[%clk 0:00:39.4]} 21. Re1 {[%clk 0:01:21.3]} 21... Bd6 {[%clk
0:00:35.1]} 22. Qf5 {[%clk 0:00:52.6]} 22... Qh4 {[%clk 0:00:32.3]} 23. h3
{[%clk 0:00:49.6]} 23... Rf8 {[%clk 0:00:27.1]} 24. Kb1 {[%clk 0:00:45.7]} 24...
Qg3 {[%clk 0:00:23.8]} 25. Qe4 {[%clk 0:00:42.2]} 25... h6 {[%clk 0:00:22]} 26.
Bc3 {[%clk 0:00:40.3]} 26... f6 {[%clk 0:00:19.2]} 27. a3 {[%clk 0:00:36.6]}
27... a5 {[%clk 0:00:19.3]} 28. Bxa5 {[%clk 0:00:34]} 28... Be5 {[%clk
0:00:16.5]} 29. Re3 {[%clk 0:00:31]} 29... Qf2 {[%clk 0:00:16]} 30. Be1 {[%clk
0:00:25.4]} 30... Qf1 {[%clk 0:00:13.8]} 31. Ka2 {[%clk 0:00:24.4]} 31... Rd8
{[%clk 0:00:10.8]} 32. Bc3 {[%clk 0:00:19.8]} 32... Bd6 {[%clk 0:00:10.8]} 33.
g4 {[%clk 0:00:17.8]} 33... Rf8 {[%clk 0:00:10.4]} 34. h4 {[%clk 0:00:17.1]}
34... Qg1 {[%clk 0:00:09.4]} 35. Rf3 {[%clk 0:00:15]} 35... Qh1 {[%clk
0:00:07.2]} 36. g5 {[%clk 0:00:14.1]} 36... hxg5 {[%clk 0:00:05.9]} 37. hxg5
{[%clk 0:00:14.5]} 37... b4 {[%clk 0:00:06.1]} 38. Qe6+ {[%clk 0:00:14.1]} 38...
Kh7 {[%clk 0:00:04.1]} 39. Rh3+ {[%clk 0:00:13.7]} 39... Qxh3 {[%clk 0:00:04.8]}
40. Qxh3+ {[%clk 0:00:14.3]} 40... Kg6 {[%clk 0:00:05.7]} 41. Bxb4 {[%clk
0:00:11.2]} 41... fxg5 {[%clk 0:00:05.2]} 42. Bxd6 {[%clk 0:00:11]} 42... cxd6
{[%clk 0:00:06.1]} 43. Qd3+ {[%clk 0:00:11.1]} 43... Kh5 {[%clk 0:00:05.8]} 44.
Qh7+ {[%clk 0:00:10.6]} 1-0

[Event "Early-Titled-Tuesday-Blitz-July-09-2024"]
[Site "Chess.com"]
[Date "2024.07.09"]
[Round "9"]
[White "sleeping_in_the_fire"]
[Black "gau248"]
[Result "0-1"]
[WhiteElo "2466"]
[BlackElo "2617"]
[TimeControl "180+1"]
[EndTime "9:46:04 PDT"]
[Termination "gau248 won by resignation"]

1. e4 {[%clk 0:03:00.9]} 1... e5 {[%clk 0:02:58.7]} 2. Nc3 {[%clk 0:02:59.1]}
2... Nc6 {[%clk 0:02:58.7]} 3. Bc4 {[%clk 0:02:57.3]} 3... g6 {[%clk 0:02:58.9]}
4. d3 {[%clk 0:02:54.8]} 4... Bg7 {[%clk 0:02:59.1]} 5. Nge2 {[%clk 0:02:55.2]}
5... Nge7 {[%clk 0:02:58]} 6. O-O {[%clk 0:02:55.2]} 6... O-O {[%clk 0:02:57.8]}
7. f4 {[%clk 0:02:55.2]} 7... Na5 {[%clk 0:02:57.6]} 8. Bb3 {[%clk 0:02:52.9]}
8... Nxb3 {[%clk 0:02:57.4]} 9. axb3 {[%clk 0:02:53.8]} 9... d5 {[%clk
0:02:57.5]} 10. fxe5 {[%clk 0:02:40.4]} 10... dxe4 {[%clk 0:02:57.3]} 11. Nxe4
{[%clk 0:02:39.2]} 11... Bxe5 {[%clk 0:02:53.2]} 12. Bh6 {[%clk 0:02:34.6]}
12... Re8 {[%clk 0:02:53.2]} 13. d4 {[%clk 0:02:34.8]} 13... Bh8 {[%clk
0:02:45.9]} 14. Bg5 {[%clk 0:02:27.4]} 14... Bf5 {[%clk 0:02:40.6]} 15. Nf6+
{[%clk 0:02:11.3]} 15... Bxf6 {[%clk 0:02:40.2]} 16. Bxf6 {[%clk 0:02:12.2]}
16... Qd6 {[%clk 0:02:40.4]} 17. Be5 {[%clk 0:02:12.2]} 17... Qd7 {[%clk
0:02:40.1]} 18. Ng3 {[%clk 0:02:10.2]} 18... Nc6 {[%clk 0:02:32.5]} 19. Rxf5
{[%clk 0:01:45]} 19... gxf5 {[%clk 0:02:28.9]} 20. Nh5 {[%clk 0:01:45.4]} 20...
Re6 {[%clk 0:02:12.1]} 21. Nf6+ {[%clk 0:01:34.5]} 21... Rxf6 {[%clk 0:02:11.9]}
22. Bxf6 {[%clk 0:01:35.4]} 22... Qe6 {[%clk 0:02:10.8]} 23. Bg5 {[%clk
0:01:29.4]} 23... Ne7 {[%clk 0:02:10.2]} 24. Qe1 {[%clk 0:01:24.4]} 24... Ng6
{[%clk 0:02:02.8]} 25. c4 {[%clk 0:01:12.6]} 25... a6 {[%clk 0:01:57.2]} 26. d5
{[%clk 0:01:11.2]} 26... Qd7 {[%clk 0:01:57.4]} 27. Qc3 {[%clk 0:01:04.2]} 27...
Re8 {[%clk 0:01:55]} 28. h4 {[%clk 0:00:48.8]} 28... f4 {[%clk 0:01:50.8]} 29.
h5 {[%clk 0:00:36.8]} 29... Qg4 {[%clk 0:01:47.8]} 30. hxg6 {[%clk 0:00:14.3]}
30... Qxg5 {[%clk 0:01:45.4]} 31. gxf7+ {[%clk 0:00:14.4]} 31... Kxf7 {[%clk
0:01:45.1]} 32. Rf1 {[%clk 0:00:14.9]} 32... Kg8 {[%clk 0:01:36]} 33. Qf3 {[%clk
0:00:14.3]} 33... Rf8 {[%clk 0:01:31.7]} 34. Qe4 {[%clk 0:00:11.5]} 34... b6
{[%clk 0:01:19.2]} 35. Qe6+ {[%clk 0:00:10.5]} 35... Kh8 {[%clk 0:01:18.1]} 36.
Re1 {[%clk 0:00:11.1]} 36... f3 {[%clk 0:01:18.1]} 37. Qe5+ {[%clk 0:00:11.1]}
37... Qxe5 {[%clk 0:01:04.2]} 38. Rxe5 {[%clk 0:00:12]} 38... Rg8 {[%clk
0:01:03.6]} 39. g3 {[%clk 0:00:05.5]} 39... Rxg3+ {[%clk 0:01:02.3]} 40. Kf2
{[%clk 0:00:06.2]} 40... Rg2+ {[%clk 0:01:01.9]} 41. Kxf3 {[%clk 0:00:06.7]}
41... Rxb2 {[%clk 0:01:02]} 42. Re8+ {[%clk 0:00:07]} 42... Kg7 {[%clk
0:01:02.2]} 43. Re7+ {[%clk 0:00:07.9]} 43... Kg6 {[%clk 0:01:02.5]} 44. Rxc7
{[%clk 0:00:08.4]} 44... Rxb3+ {[%clk 0:01:02.8]} 45. Ke4 {[%clk 0:00:09.1]}
45... h5 {[%clk 0:00:40.3]} 46. d6 {[%clk 0:00:08.2]} 46... Rb1 {[%clk 0:00:34]}
47. Ke5 {[%clk 0:00:05.1]} 47... Re1+ {[%clk 0:00:28.8]} 48. Kd5 {[%clk
0:00:05.2]} 48... h4 {[%clk 0:00:27.4]} 49. Rh7 {[%clk 0:00:05.5]} 49... Kxh7
{[%clk 0:00:25.8]} 0-1

[Event "Early-Titled-Tuesday-Blitz-July-09-2024"]
[Site "Chess.com"]
[Date "2024.07.09"]
[Round "9"]
[White "pouya21"]
[Black "vladgoncharov"]
[Result "1/2-1/2"]
[WhiteElo "2858"]
[BlackElo "2665"]
[TimeControl "180+1"]
[EndTime "9:46:07 PDT"]
[Termination "Game drawn by repetition"]

1. e4 {[%clk 0:03:00.9]} 1... e6 {[%clk 0:02:59.5]} 2. Nc3 {[%clk 0:03:01.8]}
2... d5 {[%clk 0:02:59.4]} 3. Nf3 {[%clk 0:03:02.1]} 3... Nf6 {[%clk 0:02:57.7]}
4. e5 {[%clk 0:03:02.3]} 4... Nfd7 {[%clk 0:02:57.8]} 5. d4 {[%clk 0:03:02.8]}
5... c5 {[%clk 0:02:58]} 6. Bg5 {[%clk 0:03:02.6]} 6... Qb6 {[%clk 0:02:46.6]}
7. dxc5 {[%clk 0:03:02.8]} 7... Bxc5 {[%clk 0:02:44.5]} 8. Qd2 {[%clk
0:03:03.1]} 8... a6 {[%clk 0:02:31]} 9. Na4 {[%clk 0:02:57.8]} 9... Qb4 {[%clk
0:02:28]} 10. Nxc5 {[%clk 0:02:56.8]} 10... Qxd2+ {[%clk 0:02:27.9]} 11. Nxd2
{[%clk 0:02:46.8]} 11... Nxc5 {[%clk 0:02:28.3]} 12. Be3 {[%clk 0:02:44.9]}
12... Ncd7 {[%clk 0:02:20.4]} 13. f4 {[%clk 0:02:44.4]} 13... Nc6 {[%clk
0:02:20.6]} 14. c4 {[%clk 0:02:43.5]} 14... d4 {[%clk 0:02:05.1]} 15. Bf2 {[%clk
0:02:43.2]} 15... f6 {[%clk 0:02:05]} 16. exf6 {[%clk 0:02:39.9]} 16... gxf6
{[%clk 0:02:04.6]} 17. g3 {[%clk 0:02:34.4]} 17... Nc5 {[%clk 0:01:59.3]} 18. a3
{[%clk 0:02:18.1]} 18... a5 {[%clk 0:01:57.5]} 19. Bg2 {[%clk 0:01:59.3]} 19...
Bd7 {[%clk 0:01:57]} 20. O-O {[%clk 0:01:57.9]} 20... Kf7 {[%clk 0:01:39.9]} 21.
Bxc6 {[%clk 0:01:53.6]} 21... Bxc6 {[%clk 0:01:39.7]} 22. Bxd4 {[%clk
0:01:52.1]} 22... Rhd8 {[%clk 0:01:34.2]} 23. Bxc5 {[%clk 0:01:48.8]} 23... Rxd2
{[%clk 0:01:33.3]} 24. Rf2 {[%clk 0:01:48.8]} 24... Rad8 {[%clk 0:01:25.5]} 25.
Be3 {[%clk 0:01:37.4]} 25... R2d3 {[%clk 0:01:21.7]} 26. Re1 {[%clk 0:01:17.6]}
26... a4 {[%clk 0:01:21.3]} 27. Rc2 {[%clk 0:01:11.6]} 27... Rd1 {[%clk
0:01:18.2]} 28. Rc1 {[%clk 0:01:11.7]} 28... R1d3 {[%clk 0:01:10.5]} 29. Kf2
{[%clk 0:01:11.8]} 29... Rb3 {[%clk 0:01:07.1]} 30. Re2 {[%clk 0:01:08.3]} 30...
Rdd3 {[%clk 0:01:04.2]} 31. Rce1 {[%clk 0:01:02.9]} 31... f5 {[%clk 0:01:04.2]}
32. Bc5 {[%clk 0:01:01.4]} 32... Be4 {[%clk 0:00:59.7]} 33. Bb4 {[%clk
0:01:01.7]} 33... h5 {[%clk 0:00:58.6]} 34. Bc3 {[%clk 0:00:58.9]} 34... h4
{[%clk 0:00:55.2]} 35. Re3 {[%clk 0:00:54.1]} 35... hxg3+ {[%clk 0:00:53.4]} 36.
Kxg3 {[%clk 0:00:52.9]} 36... Rxe3+ {[%clk 0:00:38.3]} 37. Rxe3 {[%clk
0:00:53.8]} 37... Rb6 {[%clk 0:00:37.2]} 38. Kf2 {[%clk 0:00:46]} 38... Kg6
{[%clk 0:00:33.3]} 39. Rg3+ {[%clk 0:00:45.3]} 39... Kh6 {[%clk 0:00:30.6]} 40.
Rg7 {[%clk 0:00:41.8]} 40... Rc6 {[%clk 0:00:27.9]} 41. Rxb7 {[%clk 0:00:37.9]}
41... Rxc4 {[%clk 0:00:27.5]} 42. Rb4 {[%clk 0:00:38.3]} 42... Bd5 {[%clk
0:00:27.5]} 43. Kg3 {[%clk 0:00:33]} 43... Kh5 {[%clk 0:00:26.1]} 44. h4 {[%clk
0:00:30.2]} 44... Re4 {[%clk 0:00:25.8]} 45. Rxe4 {[%clk 0:00:27.6]} 45... Bxe4
{[%clk 0:00:24]} 46. Bf6 {[%clk 0:00:25.2]} 46... Bd5 {[%clk 0:00:23.4]} 47. Bg5
{[%clk 0:00:25.3]} 47... Bb3 {[%clk 0:00:23.4]} 48. Kf2 {[%clk 0:00:26]} 48...
Kg6 {[%clk 0:00:23.3]} 49. Ke3 {[%clk 0:00:26.9]} 49... Kh5 {[%clk 0:00:23.6]}
50. Kd4 {[%clk 0:00:27.8]} 50... Kg6 {[%clk 0:00:23.9]} 51. Ke5 {[%clk
0:00:28.5]} 51... Bd5 {[%clk 0:00:22.5]} 52. Kd6 {[%clk 0:00:28]} 52... Bb3
{[%clk 0:00:22.1]} 53. Kc5 {[%clk 0:00:28.3]} 53... Kh5 {[%clk 0:00:21.8]} 54.
Kd4 {[%clk 0:00:28.5]} 54... Kg6 {[%clk 0:00:22]} 55. Bd8 {[%clk 0:00:28.5]}
55... Kh5 {[%clk 0:00:21.7]} 56. Ke3 {[%clk 0:00:28.9]} 56... Kg6 {[%clk
0:00:21.8]} 57. Kf2 {[%clk 0:00:28.8]} 57... Kh5 {[%clk 0:00:22.1]} 58. Ke1
{[%clk 0:00:26.9]} 58... Kg4 {[%clk 0:00:22.2]} 59. Bg5 {[%clk 0:00:25.8]} 59...
Kh5 {[%clk 0:00:21.4]} 60. Kd2 {[%clk 0:00:25.7]} 60... Kg4 {[%clk 0:00:20.9]}
61. Ke3 {[%clk 0:00:26.1]} 61... Kh5 {[%clk 0:00:21.3]} 62. Kd4 {[%clk
0:00:26.8]} 1/2-1/2

[Event "Early-Titled-Tuesday-Blitz-July-09-2024"]
[Site "Chess.com"]
[Date "2024.07.09"]
[Round "9"]
[White "bazar-wokzal"]
[Black "FormerProdigy"]
[Result "1/2-1/2"]
[WhiteElo "2615"]
[BlackElo "2944"]
[TimeControl "180+1"]
[EndTime "9:46:15 PDT"]
[Termination "Game drawn by repetition"]

1. e4 {[%clk 0:03:00.9]} 1... c5 {[%clk 0:03:00]} 2. c3 {[%clk 0:03:00.5]} 2...
d5 {[%clk 0:02:57.8]} 3. exd5 {[%clk 0:03:00.5]} 3... Qxd5 {[%clk 0:02:58.7]} 4.
d4 {[%clk 0:03:00.4]} 4... Nf6 {[%clk 0:02:59.2]} 5. Nf3 {[%clk 0:03:00.8]} 5...
e6 {[%clk 0:02:59.8]} 6. a3 {[%clk 0:03:00.6]} 6... Nc6 {[%clk 0:02:55.3]} 7.
Be3 {[%clk 0:03:00.8]} 7... cxd4 {[%clk 0:02:54]} 8. cxd4 {[%clk 0:03:01.7]}
8... Be7 {[%clk 0:02:51.8]} 9. Nc3 {[%clk 0:03:02.2]} 9... Qd6 {[%clk
0:02:52.2]} 10. Qc2 {[%clk 0:03:02.9]} 10... O-O {[%clk 0:02:49.5]} 11. Bd3
{[%clk 0:03:03.4]} 11... h6 {[%clk 0:02:36.1]} 12. Rc1 {[%clk 0:03:00.6]} 12...
Bd7 {[%clk 0:02:31.7]} 13. O-O {[%clk 0:03:00]} 13... Rfd8 {[%clk 0:02:23.5]}
14. Qd2 {[%clk 0:02:57.7]} 14... Bf8 {[%clk 0:02:21.5]} 15. Bf4 {[%clk
0:02:54.5]} 15... Qe7 {[%clk 0:02:21.9]} 16. Rfe1 {[%clk 0:02:54.7]} 16... Be8
{[%clk 0:02:19.9]} 17. Bb1 {[%clk 0:02:50.9]} 17... Rac8 {[%clk 0:02:06.2]} 18.
Qc2 {[%clk 0:02:38.2]} 18... g6 {[%clk 0:02:02.1]} 19. Rcd1 {[%clk 0:02:36.7]}
19... Qd7 {[%clk 0:01:44]} 20. Ba2 {[%clk 0:02:32.2]} 20... Bg7 {[%clk
0:01:39.2]} 21. d5 {[%clk 0:01:44.8]} 21... exd5 {[%clk 0:01:40.1]} 22. Nxd5
{[%clk 0:01:44]} 22... Nxd5 {[%clk 0:01:40.6]} 23. Rxd5 {[%clk 0:01:42.2]} 23...
Qg4 {[%clk 0:01:30.8]} 24. Rxd8 {[%clk 0:01:36.3]} 24... Rxd8 {[%clk 0:01:31.7]}
25. Bg3 {[%clk 0:01:26.4]} 25... Kh7 {[%clk 0:01:20]} 26. h3 {[%clk 0:01:19.4]}
26... Qd7 {[%clk 0:01:17]} 27. h4 {[%clk 0:01:16.7]} 27... Ne7 {[%clk
0:01:00.8]} 28. h5 {[%clk 0:01:08.5]} 28... Nf5 {[%clk 0:01:00.9]} 29. hxg6+
{[%clk 0:01:08.2]} 29... fxg6 {[%clk 0:01:01.8]} 30. Be5 {[%clk 0:01:04.7]}
30... Bf7 {[%clk 0:00:54.9]} 31. Bxf7 {[%clk 0:00:56.8]} 31... Qxf7 {[%clk
0:00:55.8]} 32. Bxg7 {[%clk 0:00:56.8]} 32... Qxg7 {[%clk 0:00:52.7]} 33. Re6
{[%clk 0:00:48.7]} 33... Qf7 {[%clk 0:00:44.6]} 34. Qe4 {[%clk 0:00:44.5]} 34...
Rd1+ {[%clk 0:00:39.1]} 35. Kh2 {[%clk 0:00:44.3]} 35... Qc7+ {[%clk 0:00:36.7]}
36. g3 {[%clk 0:00:43.4]} 36... Rd7 {[%clk 0:00:13.4]} 37. Rxg6 {[%clk
0:00:38.6]} 37... Qc5 {[%clk 0:00:06.7]} 38. Rg4 {[%clk 0:00:20.4]} 38... Qxf2+
{[%clk 0:00:06.3]} 39. Kh3 {[%clk 0:00:20.8]} 39... Qf1+ {[%clk 0:00:05.9]} 40.
Kh2 {[%clk 0:00:21.3]} 40... Qf2+ {[%clk 0:00:04.5]} 41. Kh3 {[%clk 0:00:21.8]}
41... Rf7 {[%clk 0:00:03.1]} 42. Nh4 {[%clk 0:00:15.5]} 42... Qf1+ {[%clk
0:00:02.9]} 43. Kh2 {[%clk 0:00:15.7]} 43... Qf2+ {[%clk 0:00:03]} 44. Kh3
{[%clk 0:00:16.2]} 44... h5 {[%clk 0:00:02.9]} 45. Rg5 {[%clk 0:00:13.3]} 45...
Qf1+ {[%clk 0:00:03.3]} 46. Kh2 {[%clk 0:00:13.8]} 46... Qf2+ {[%clk 0:00:03.1]}
47. Kh3 {[%clk 0:00:14.3]} 47... Qf1+ {[%clk 0:00:03.1]} 48. Kh2 {[%clk
0:00:14.8]} 48... Qf2+ {[%clk 0:00:03.7]} 49. Kh3 {[%clk 0:00:15.3]} 1/2-1/2

[Event "Early-Titled-Tuesday-Blitz-July-09-2024"]
[Site "Chess.com"]
[Date "2024.07.09"]
[Round "9"]
[White "nitpicker"]
[Black "IC3S2"]
[Result "0-1"]
[WhiteElo "2317"]
[BlackElo "2545"]
[TimeControl "180+1"]
[EndTime "9:46:17 PDT"]
[Termination "IC3S2 won on time"]

1. d4 {[%clk 0:03:00.9]} 1... d5 {[%clk 0:02:59.5]} 2. c4 {[%clk 0:03:00.8]}
2... e6 {[%clk 0:02:56.3]} 3. Nf3 {[%clk 0:03:00]} 3... c5 {[%clk 0:02:55.5]} 4.
cxd5 {[%clk 0:02:58.3]} 4... exd5 {[%clk 0:02:55.3]} 5. g3 {[%clk 0:02:58.4]}
5... Nf6 {[%clk 0:02:55.1]} 6. Bg2 {[%clk 0:02:58.4]} 6... Nc6 {[%clk
0:02:55.2]} 7. O-O {[%clk 0:02:52.8]} 7... Be7 {[%clk 0:02:54.9]} 8. Nc3 {[%clk
0:02:51.1]} 8... O-O {[%clk 0:02:53.4]} 9. dxc5 {[%clk 0:02:51.3]} 9... Bxc5
{[%clk 0:02:53.9]} 10. Bg5 {[%clk 0:02:50.4]} 10... d4 {[%clk 0:02:45.2]} 11.
Bxf6 {[%clk 0:02:50.4]} 11... Qxf6 {[%clk 0:02:44.7]} 12. Nd5 {[%clk 0:02:50.9]}
12... Qd8 {[%clk 0:02:42.3]} 13. Nd2 {[%clk 0:02:51.5]} 13... Re8 {[%clk
0:02:29.3]} 14. a3 {[%clk 0:02:36.6]} 14... Be6 {[%clk 0:02:24.3]} 15. Nf4
{[%clk 0:02:34.6]} 15... Bb6 {[%clk 0:02:24.3]} 16. Rc1 {[%clk 0:02:30.7]} 16...
Rc8 {[%clk 0:02:20.1]} 17. Re1 {[%clk 0:02:20.6]} 17... a6 {[%clk 0:02:15.3]}
18. Nxe6 {[%clk 0:02:11.7]} 18... fxe6 {[%clk 0:02:15.3]} 19. Qb3 {[%clk
0:02:00.8]} 19... Ba5 {[%clk 0:02:00.8]} 20. Red1 {[%clk 0:01:50.9]} 20... Qb6
{[%clk 0:01:49.3]} 21. Qa2 {[%clk 0:01:21.7]} 21... Bxd2 {[%clk 0:01:42.3]} 22.
Rxd2 {[%clk 0:01:20.6]} 22... Kh8 {[%clk 0:01:30.2]} 23. Bh3 {[%clk 0:01:12.5]}
23... Qa5 {[%clk 0:01:10.8]} 24. Rcd1 {[%clk 0:01:01.2]} 24... Qe5 {[%clk
0:00:59.7]} 25. Bg2 {[%clk 0:00:51]} 25... Red8 {[%clk 0:00:56.5]} 26. b4 {[%clk
0:00:44.2]} 26... Qf6 {[%clk 0:00:50.5]} 27. Qb3 {[%clk 0:00:41.2]} 27... e5
{[%clk 0:00:48.5]} 28. Qd3 {[%clk 0:00:39.9]} 28... Qe7 {[%clk 0:00:40.7]} 29.
Rc2 {[%clk 0:00:37.3]} 29... Na7 {[%clk 0:00:33.4]} 30. Rdc1 {[%clk 0:00:34.1]}
30... Qd7 {[%clk 0:00:18.5]} 31. Be4 {[%clk 0:00:31.6]} 31... h6 {[%clk
0:00:16.6]} 32. Bf5 {[%clk 0:00:30.2]} 32... Rxc2 {[%clk 0:00:17.1]} 33. Rxc2
{[%clk 0:00:25.7]} 33... Qf7 {[%clk 0:00:17]} 34. Bg6 {[%clk 0:00:23.4]} 34...
Qe7 {[%clk 0:00:16.6]} 35. Be4 {[%clk 0:00:18.9]} 35... Nb5 {[%clk 0:00:16.5]}
36. Rc4 {[%clk 0:00:15.8]} 36... Nd6 {[%clk 0:00:16.1]} 37. Rc2 {[%clk
0:00:13.9]} 37... Qd7 {[%clk 0:00:15.7]} 38. Bg2 {[%clk 0:00:10.8]} 38... Rc8
{[%clk 0:00:15.4]} 39. Rc5 {[%clk 0:00:08.5]} 39... Qe6 {[%clk 0:00:12.9]} 40.
Be4 {[%clk 0:00:05.1]} 40... b6 {[%clk 0:00:11.3]} 41. Rxc8+ {[%clk 0:00:04]}
41... Qxc8 {[%clk 0:00:12.2]} 42. Kg2 {[%clk 0:00:03.9]} 42... b5 {[%clk
0:00:12.2]} 43. Bd5 {[%clk 0:00:03.7]} 43... Qe8 {[%clk 0:00:09]} 44. Qf3 {[%clk
0:00:03.6]} 44... e4 {[%clk 0:00:08]} 45. Qf4 {[%clk 0:00:04]} 45... Qe7 {[%clk
0:00:07.6]} 46. Qg4 {[%clk 0:00:03.5]} 46... Qe5 {[%clk 0:00:07.1]} 47. Qe6
{[%clk 0:00:03]} 47... Qxe6 {[%clk 0:00:06.9]} 48. Bxe6 {[%clk 0:00:03.4]} 48...
Kh7 {[%clk 0:00:07.1]} 49. f3 {[%clk 0:00:02.7]} 49... exf3+ {[%clk 0:00:05.7]}
50. Kxf3 {[%clk 0:00:01.8]} 50... Kg6 {[%clk 0:00:06.4]} 51. Kf4 {[%clk
0:00:02.2]} 51... Kf6 {[%clk 0:00:07.1]} 52. Bd5 {[%clk 0:00:02]} 52... g5+
{[%clk 0:00:07.3]} 53. Kf3 {[%clk 0:00:01.5]} 53... Ke5 {[%clk 0:00:07.4]} 54.
Bc6 {[%clk 0:00:01.3]} 54... h5 {[%clk 0:00:07.6]} 0-1